Workbook

Sheet OBSAH
A4: STRATEGICKÝ PLÁN ROZVOJE MĚSTA / Akční plán 2018
A6: Akční plán byl aktualizován v souladu s návrhem rozpočtu předkládaným v dubnu 2018 Zastupitelstvu města Jihlavy ke schválení. Nově zařazené aktivity a projekty jsou v dokumentu vyznačeny zelenou barvou.

Sheet Příjmy odboru (hidden)
B2: Odbor:
B3: ORG | C3: § | D3: pol. | E3: Název | F3: Návrh příjmů 2018 v tis. Kč
M16: T
M17: KP
M18: KT
M19: EO
M20: OI
M21: OŠKT
M22: ORM
M23: MO
M24: OSR
M25: ÚÚP
M26: SÚ
M27: OŽÚ
M28: OŽP
M29: SPO
M30: OD
M31: OSV
M32: MP
E47: Příjmy celkem | F47: =SUM(F4:F46) -> 0

Sheet akční plán 2018 - A
A1: STRATEGICKÝ PLÁN ROZVOJE MĚSTA / Akční plán 2018
A3: Priorita A - vzdělávání, podnikání a zaměstnanost
A4: projekt / aktivita | C4: rozpočet 2018 v tis. Kč | D4: dotace
A5: A1. Aktivní koordinace systému kariérního poradenství a vzdělávání
A7: A2. Podporovat kvalitu v oblasti předškolního a základního vzdělávání na území města
B8: Vybavenost a modernizace předškolních a školských zařízení (MŠ Dvořákova, MŠ Seifertova 4A, MŠ Riegrova, MŠ Hálkova, ZŠ Březinova, TG. Masaryka, ZŠ Křížová, MŠ Na Dolech) | C8: =63871+3500+28000 -> 95371 | D8: 34181
B9: Místní akční plán pro ORP Jihlava | C9: 750 | D9: 250
A10: A3. Vytvářet podmínky pro udržení a rozvoj vysokého školství ve městě
B11: Podpora statutárního města Jihlavy ke stabilizaci a personálnímu rozvoji VŠPJ ke zvýšení kvality vzdělávání | C11: 1050
A12: A4. Využívat potenciál místních kulturních a uměleckých aktivit pro rozvoj vzdělávání
B13: Inkubátor "kultura vzdělává" | C13: 150
B14: Rozšíření grantového systému pro kulturu o vzdělávací projekty (Dotační program Jihlava vzdělává kulturou 2018) | C14: 500
A15: CELKEM | C15: =SUM(C6:C14) -> 97821 | D15: =SUM(D6:D14) -> 34431

Sheet akční plán 2018 - B
A1: STRATEGICKÝ PLÁN ROZVOJE MĚSTA / Akční plán 2018
A3: Priorita B - Sociální oblast, zdravotnictví a bezpečnost
A4: projekt / aktivita | C4: Rozpočet 2018 v tis. Kč | D4: dotace
A5: B1. Vytvoření systému efektivního využívání kapacit zařízení sociální péče a rozvoj nových zařízení a služeb
B6: Chráněné bydlení pro osoby se zdravotním postižením v Jihlavě | C6: =4251+1000 -> 5251 | D6: 1953
B7: Rekonstrukce objektu ul. Žižkova 106, Jihlava, pro potřeby ICSS | C7: 42980 | D7: 1800
B8: Rozvoj Denního a týdeního stacionáře Jihlava - II. etapa | C8: 6800 | D8: 4050
B9: Komunitní centrum Jihlava | C9: =2500+5000 -> 7500
A10: B2. Zvýšení povědomí občanů města o zdravém životním stylu a významu prevence
B11: Výdaje spojené s projektem Zdravé město a místní Agendou 21 | C11: 800 | D11: 60
A15: B3. Posílení bezpečnosti na území města a zvýšení odolnosti proti krizovým situacím
B16: Zvýšení bezpečnosti Metropolitní sítě statutárního města Jihlavy na úrovni perimetru | C16: 7000
B17: Obnova a digitalizace monitorovacího kamerového a dohlížecího systému | C17: 1200
B18: Sokolovská 149, Jihlava - Vybudování náhradního zdroje napájení | C18: 600
B19: Rekonstrukce radiové sítě | C19: 550
B20: Elektrocentrála pro budovu MP | C20: 200
A21: CELKEM | C21: =SUM(C6:C20) -> 72881 | D21: =SUM(D6:D20) -> 7863

Sheet akční plán 2018 - C
A1: STRATEGICKÝ PLÁN ROZVOJE MĚSTA / Akční plán 2018
A3: Priorita C - Udržitelný územní rozvoj města a správa města
A4: projekt / aktivita | C4: rozpočet 2018 v tis. Kč | D4: dotace
A5: C1. Vytvoření podmínek pro kvalitní bydlení a další územní rozvoj města
B6: Opravy bytů | C6: =5550+7145 -> 12695
B7: Územní plán města Jihlavy | C7: 1000
B8: Územní studie Jihlava II. etapa | C8: 1800
B9: U Mincovny 6,8 - rekonstrukce | C9: 850
B10: Revitalizace městských prostorů - arch. soutěž Masarykovo náměstí | C10: =1429+500 -> 1929
A11: C2. Zavést a rozvíjet integrovaný systém udržitelné městské mobility (SUMP)
B12: Plán udržitelné městské mobility | C12: 1725
B13: Centrální dopravní terminál | C13: 9858
B14: Dopravní terminál - ul. Na Dolech, Jihlava | C14: =7670+2500 -> 10170 | D14: 6907
B15: Zastávka MHD Popice | C15: 250
B16: Zastávka MHD ul. Vrchlického | C16: 200
B17: Stavební preference na komunikaci Hradební – Brněnská, Jihlava (bude se přidávat) | C17: 7500
B18: Chodník od ul. Sokolovská 99 k ZŠ Kollárova | C18: 2000
B19: Oprava komunikace s přilehlým chodníkem na ul. Úprkova, Jihlava | C19: 5100
B20: Rozšíření propojky Kosovská - Brtnická | C20: 500
B21: Chodník a parkoviště ul. Březinova | C21: 150
B22: Chodníky Brtnické předměstí, Jihlava | C22: 600
B23: Chodník a veřejné osvětlení Zborná | C23: 300
B24: Rozšíření komunikace ul. Mlýnská | C24: =453+3500 -> 3953
B25: Smíšená stezka pro pěší a cyklisty a cyklostezka - průmyslový park Jihlava | C25: =5700+3500 -> 9200 | D25: 5130
B26: Úprava křižovatky ul. Žižkova a Rantířovská | C26: 17000
B27: Úprava dopravního režimu ul. Znojemská - Brtnická, Jihlava | C27: 453
B28: Manipulační plocha, ul. Telečská | C28: 5983
B29: Mimoúrovňová křižovatka I/38 - R. Havelky | C29: 1802
B30: Mosty přes dálniční přivaděč | C30: 15988
B31: Zvýšení bezpečnosti v průmyslovém parku, Jihlava | C31: =15178+8000 -> 23178 | D31: 15461
B32: Zvýšení bezpečnosti dopravy v Jihlavě - II. etapa | C32: 3000
B33: Antonínův Důl - chodník a kanalizace II. etapa | C33: 7700
B34: Bezpečnost dopravy na přechodech pro chodce | C34: 15432 | D34: 6298
B35: Nákup (odkup) radaru na úsekové měření rychlosti | C35: 1600
B36: Vybudování parkoviště P+R, ul. Žižkova, Jihlava | C36: =20000+9500 -> 29500 | D36: 13115
B37: Cyklostezka R08 - Pávov (průmyslová zóna - sever) | C37: =68611+12000 -> 80611 | D37: 49500
B38: Cyklostezka G04 ul. Mlýnská - Helenínská (Plastikov) | C38: 900
B39: Parkoviště (ul. Halasova, ul. Nad Plovárnou, ul. Zimní, ul. Hálkova) | C39: =1829+161+800 -> 2790
B40: Projekční příprava komunikací a chodníků (chodník VO Brtnická, propojení ul. Brněnská-Kosovská, ul. Hálkova, ul. Wolkerova, ul. Telečská, sjezd Pávov) | C40: =264+1840+416+300+600 -> 3420
B41: Bezbariérová úprava zastávek MHD Telečská a chodník a parkovací pruh v ul. Wolkerova | C41: 2986
B42: Rozšíření trolejbusové dopravy - sever | C42: 8000
B43: Naváděcí parkovací systém, Jihlava | C43: 500
A44: C3. Zachování životního protředí, modernizace a rozšíření technické infrastruktury
B45: Veřejné osvětlení Pávov | C45: 5850
B46: Skalka - revitalizace vodní nádrže | C46: 50
B47: Investice do vodohospodářské infrastruktury ve městě | C47: =500+250+1000+250+300+5200+867.746+4285.094+32875.9+225.6+415+669+813.707+399.207+5000+255.2 -> 53306.454
B48: Výkup pozemků pod stávající skládkou TO v Henčově | C48: 15600
B49: Rozšíření kompostárny v areálu skládky Henčov | C49: 857
B50: Zhotovení zpevněných stanovišť kontejnerů | C50: 2837
B51: Aktualizace energetické koncepce | C51: 350
A52: C4. Zkvalitnění správních služeb magistrátu a zapojení občanů do plánování a rozvoje města
B53: Třetí aktualizace dat pasportu zeleně | C53: 1500
B54: Programové vybavení, výpočetní technika, zařízení | C54: 4250
B55: Rozšíření a modernizace informačního systému statutárního města Jihlavy | C55: 7000
B56: Diskové úložiště, iSCSI/FC switche | C56: 2700
B57: Vyvolávací systémy | C57: 600
A58: CELKEM | C58: =SUM(C11:C55) -> 363949.454 | D58: =SUM(D6:D55) -> 96411

Sheet akční plán 2018 - D
A1: STRATEGICKÝ PLÁN ROZVOJE MĚSTA / Akční plán 2018
A3: Priorita D - Kultura, sport, volnočasové aktivity a cestovní ruch
A4: projekt / aktivita | C4: rozpočet 2018 v tis. Kč | D4: dotace
A5: D1. Zajištění podmínek pro koncepční rozvoj kultury a podporu místní tvorby
B6: Podzemí - aktualizace stávající prohlídkové trasy | C6: 200
B7: Pocta J. Hauptovi - výstava fotografií | C7: =70+80 -> 150
B8: Aktualizace grantového systému fáze I (dotace a transfery) | C8: 9000
B9: Akční plán 2017 - 2018 (strategie kultury a cestovního ruchu) - projekty OŠKT | C9: 1270
B10: 100. výročí vzniku ČSR | C10: =100+100 -> 200
A11: D2. Zajištění podmínek a kapacit pro koordinaci celoroční nabídky kultury a trávení volného času pro místní i návštěvníky
B12: Akční plán 2017 - 2018 (strategie kultury a cestovního ruchu) - projekty v oblasti kultury a CR | C12: 650
B13: Výdaje na provoz Turistických informačního center, Domu Gustava Mahlera a podzemí | C13: 4710
B14: Výdaje na expozici v Domě Gustava Mahlera | C14: 200
A15: D3. | B15: Zvýšení atraktivity centra města
A17: D4. | B17: Rozvoj Stříbrného údolí jakožto klíčové součásti značky města
B18: Územní studie "Stříbrného údolí" a Starohorský náhon | C18: 650
B19: Studie využitelnosti Modety (skicovné, odměny, soutěž) | C19: 370
A20: D5. Rozvoj sportovní infrastruktury
B21: Rekonstrukce Horáckého zimního stadionu | C21: 2537
A22: CELKEM | C22: =SUM(C6:C21) -> 19937
